Cogmind - Beta 13 @@@ ROGUE MODE // 2024.06.28 @ 11:38:11 Player: Some Pennies Result: Destroyed by D-53 Grenadier with Mini Grenade Launcher Performance ------------- Evolutions (0) 0 Regions Visited (2) 400 Robots Destroyed (41) 205 Value Destroyed (911) 911 Prototype IDs (3) 60 Alien Tech Used (0) 0 Bonus (0) 0 TOTAL SCORE: 1576 Bonus ------- None Cogmind --------- Core Integrity 0/250 Matter 273/300 Energy 214/250 System Corruption 0% Temperature Cool (24) Movement Core (1550) Ox30 Location -10/Mines Parts ------- > --- POWER (1) -------- Ion Engine > --- PROPULSION (2) --- (None) > --- UTILITY (2) ------ Cooling System Huge Storage Unit > --- WEAPON (2) ------- Particle Cannon > --- INVENTORY (25) --- Light Nuclear Core Light Treads Light Treads Light Treads Compact Wheel Cooling System Cooling System Cooling System Huge Storage Unit Seismic Detector ECM Suite Light Armor Plating Light Armor Plating Hacking Suite Trap Extractor (0/4) Improved EM Shotgun Improved EM Shotgun Improved EM Shotgun Particle Cannon Particle Cannon Heavy Assault Rifle Rocket Launcher Rocket Launcher Rocket Launcher Mining Laser Peak State ------------ > --- POWER ------------ Ion Engine > --- PROPULSION ------- Light Treads Light Treads > --- UTILITY ---------- Cooling System Huge Storage Unit > --- WEAPON ----------- Improved EM Shotgun Improved EM Shotgun > --- INVENTORY -------- Ion Engine Light Treads Light Treads Compact Wheel Compact Wheel Cooling System Cooling System Cooling System Huge Storage Unit Seismic Detector Transport Network Coupler ECM Suite Hacking Suite Particle Cannon Particle Cannon Particle Cannon Rocket Launcher Rocket Launcher Rocket Launcher Mining Laser [Rating: 15] Favorites ----------- Power Ion Engine Engine Ion Engine Propulsion Light Treads Treads Light Treads Wheel Compact Wheel Utility Cooling System Device Cooling System Storage Huge Storage Unit Weapon Particle Cannon Energy Gun Improved EM Shotgun Energy Cannon Particle Cannon Ballistic Gun Light Assault Rifle Launcher Rocket Launcher Special Weapon Mining Laser Build | -11 -10 -10 ------- Run | Yrd Mat Min Slots Evolved . | . . . Power . | . . . Propulsion . | . . . Utility . | . . . Weapon . | . . . Parts Attached 36 | 7 24 5 Power 3 | 1 1 1 Engine 3 | 1 1 1 Core . | . . . Reactor . | . . . Propulsion 4 | 2 2 . Treads 3 | 1 2 . Leg . | . . . Wheel 1 | 1 . . Hover . | . . . Flight . | . . . Utility 8 | 2 6 . Device 4 | 1 3 . Storage 4 | 1 3 . Processor . | . . . Hackware . | . . . Protection . | . . . Artifact . | . . . Weapon 21 | 2 15 4 Energy Gun 2 | . 2 . Energy Cannon 10 | . 8 2 Ballistic Gun 3 | 2 1 . Ballistic Cannon . | . . . Launcher 3 | . 1 2 Special Weapon 3 | . 3 . Impact Weapon . | . . . Slashing Weapon . | . . . Piercing Weapon . | . . . Special Melee Weapon . | . . . Unidentified Prototypes 1 | . 1 . Parts Lost 5 | . 1 4 Power 2 | . 1 1 Propulsion 2 | . . 2 Utility . | . . . Weapon 1 | . . 1 Highest Loss Streak 3 | . 1 3 To Critical Strikes . | . . . Average Slot Usage (%) 99 | . 99 99 Engine 13 | . 13 13 Treads 27 | . 27 28 Device 14 | . 14 14 Storage 14 | . 14 14 Energy Cannon 22 | . 21 27 Ballistic Gun 4 | . 4 . Naked Turns . | . . . Heaviest Build 95 | 13 95 95 Greatest Support 40 | 16 40 40 Greatest Overweight (x) 2 | . 2 2 Average Overweight (x) . | . . 2 Largest Inventory Capacity 25 | 8 25 25 Average Capacity 21 | 7 20 25 Most Carried 25 | 5 24 25 Average Carried 17 | 3 17 24 Final Capacity 25 | 8 25 25 Final Carried 25 | 5 24 25 Class Distribution -------------------- 100% | Mutant Dominant Class ---------------- Mutant | -10/Materials Mutant | -10/Mines Resources | -11 -10 -10 ----------- Run | Yrd Mat Min Matter Collected 616 | 286 261 69 Remotely . | . . . Salvage Created 1327 | 116 915 296 Parts 86 | 4 64 18 Haulers Intercepted 2 | . 2 . Recyclers Shooed . | . . . Parts Field Recycled . | . . . Retrieved Matter . | . . . Parts Self-Destructed . | . . . Prevented . | . . . Kills | -11 -10 -10 ------- Run | Yrd Mat Min Combat Hostiles Destroyed 30 | . 18 12 Guns 1 | . 1 . Cannons 17 | . 12 5 AOE 11 | . 4 7 Classes Destroyed 11 | 2 7 2 Worker 1 | . 1 . Builder 2 | . 2 . Tunneler 1 | 1 . . Hauler 2 | . 2 . Recycler 3 | 1 1 1 Operator 2 | . 2 . Watcher 2 | . 2 . Swarmer 9 | . 3 6 Grunt 17 | . 15 2 Sentry 2 | . . 2 Assembled 2 | . . 2 Best Kill Streak 6 | 2 3 6 Combat Bots Only 6 | . 3 6 Max Kills in Single Turn 2 | 1 2 2 Gunslinging . | . . . Exploded 2 | . 2 2 Melee . | . . . Uniques/NPCs Destroyed . | . . . Combat | -11 -10 -10 -------- Run | Yrd Mat Min Hostile Shots Fired 93 | . 58 35 Missed 25 | . 16 9 Damage Taken 1049 | . 476 573 Core 266 | . 106 160 Absorbed by Shields . | . . . Regen/Repaired (Parts) 87 | . 87 . Core Remaining (%) 100 | 100 . . Volleys Fired 103 | 8 74 21 Largest 2 | 2 2 2 Hottest 136 | 40 136 136 Shots Fired 184 | 16 132 36 Gun 24 | 16 8 . Cannon 138 | . 108 30 Launcher 8 | . 2 6 Special 14 | . 14 . Kinetic 22 | 16 6 . Thermal 152 | . 122 30 Explosive 8 | . 2 6 Electromagnetic 2 | . 2 . Robot Hit Streak 14 | 5 14 11 Robot Miss Streak 5 | 2 5 2 Penetration Max . | . . . Secondary Targets . | . . . Shots Hit Robots 106 | 11 75 20 Core Hits 50 | 5 30 15 Critical Kills . | . . . Critical Parts Destroyed . | . . . Critical Strikes . | . . . Melee Attacks . | . . . Impact . | . . . Slashing . | . . . Piercing . | . . . Sneak Attacks . | . . . Combat Hostiles . | . . . Follow-up Attacks . | . . . Damage Inflicted 2771 | 85 1786 900 Guns 154 | 85 69 . Cannons 1948 | . 1535 413 Explosions 645 | . 158 487 Melee . | . . . Ramming . | . . . Kinetic 117 | 85 32 . Thermal 2015 | . 1602 413 Explosive 602 | . 115 487 Electromagnetic 37 | . 37 . Impact . | . . . Slashing . | . . . Piercing . | . . . Highest Corruption . | . . . Average Corruption . | . . . Corruption Purged . | . . . Corruption Blocked . | . . . Overload Shots . | . . . Overflow Damage 34 | . 6 28 Projectiles 6 | . 6 . Explosions 28 | . . 28 Melee . | . . . Knockbacks . | . . . Impact . | . . . Kinetic . | . . . Secondary . | . . . Self-Inflicted Damage 61 | . . 61 Shots 3 | . . 3 Rammed . | . . . Targets Rammed . | . . . Kicked . | . . . Crushed . | . . . Highest Temperature 243 | . 243 69 Average Temperature 43 | . 48 22 Received Heat Transfer 360 | . 249 111 Siege Activations . | . . . Robots Corrupted . | . . . Combat Hostiles . | . . . Parts Fried . | . . . Impact Corruptions . | . . . Robots Melted 1 | . 1 . Combat Hostiles 1 | . 1 . Parts Melted 6 | . 3 3 Heat Transferred 3504 | . 2764 740 Parts Sabotaged . | . . . Parts Stolen . | . . . Parts Stripped . | . . . Power Chain Reactions 1 | . 1 . Alert | -11 -10 -10 ------- Run | Yrd Mat Min Peak Influence 332 | 10 173 332 Initial 42 | . 6 42 Average 112 | 2 87 279 Maximum Alert Level 1 | . . 1 Low Security (%) 85 | 100 100 2 Level 1 14 | . . 97 Level 2 . | . . . Level 3 . | . . . Level 4 . | . . . Level 5 . | . . . High Security . | . . . Max Security . | . . . Squads Dispatched 5 | . 5 . Investigation 3 | . 3 . Extermination . | . . . Reinforcement 2 | . 2 . Assault . | . . . Garrison . | . . . Intercept . | . . . Searches Triggered . | . . . Construction Impeded . | . . . Haulers Reinforced . | . . . Active Scanning Responses . | . . . Cargo Convoy Interrupts . | . . . Stealth | -11 -10 -10 --------- Run | Yrd Mat Min Distress Signals 3 | . 3 . Communications Jammed . | . . . Distress Signals . | . . . Times Spotted 47 | . 28 19 Peak Tracking Total 5 | . 4 5 Tactical Retreats 1 | . . 1 Traps | -11 -10 -10 ------- Run | Yrd Mat Min Traps Triggered . | . . . Indirectly . | . . . Trap Hack Attempts . | . . . Triggered . | . . . Disarmed . | . . . Reprogrammed . | . . . Reused . | . . . Traps Extracted . | . . . Installed . | . . . Triggered . | . . . Machines | -11 -10 -10 ---------- Run | Yrd Mat Min Machines Disabled 1 | . 1 . Max in Single Turn 1 | . 1 . Machines Repaired . | . . . Machines Dismantled . | . . . Machines Sabotaged . | . . . Overloaded Fab Kills . | . . . Hacking | -11 -10 -10 --------- Run | Yrd Mat Min Machines Accessed 9 | . 9 . Terminals 6 | . 6 . Fabricators . | . . . Repair Stations 1 | . 1 . Recycling Units 2 | . 2 . Scanalyzers . | . . . Garrison Access . | . . . Total Hacks 30 | . 30 . Successful 17 | . 17 . Failed 13 | . 13 . Catastrophic 2 | . 2 . Database Lockouts . | . . . Manual 7 | . 7 . Terminals 20 | . 20 . Fabricators . | . . . Repair Stations 4 | . 4 . Recycling Units 6 | . 6 . Scanalyzers . | . . . Garrison Access . | . . . Terminal Hacks 10 | . 10 . Robot Analysis 2 | . 2 . Prototype ID Bank 1 | . 1 . Emergency Access Points 2 | . 2 . Locate Traps 3 | . 3 . Zone Layout 2 | . 2 . Fabricator Hacks . | . . . Repair Station Hacks 4 | . 4 . Scan Component 2 | . 2 . Repair 2 | . 2 . Recycling Unit Hacks 1 | . 1 . Retrieve Components 1 | . 1 . Scanalyzer . | . . . Garrison Access Hacks . | . . . Unauthorized Hacks 2 | . 2 . Terminals . | . . . Fabricators . | . . . Repair Stations . | . . . Recycling Units 2 | . 2 . Tunnel 2 | . 2 . Scanalyzers . | . . . Garrison Access . | . . . Data Cores Recovered . | . . . Used . | . . . Hacking Detections 9 | . 9 . Full Trace Events 2 | . 2 . Feedback Events . | . . . Feedback Blocked . | . . . Robot Schematics Acquired . | . . . Robots Built . | . . . Authchips . | . . . Time . | . . . Total Robot Build Rating . | . . . Part Schematics Acquired . | . . . Parts Built . | . . . Authchips . | . . . Time . | . . . Total Part Build Rating . | . . . Parts Repaired 2 | . 2 . Time 58 | . 58 . Parts Recycled . | . . . Recycled Matter . | . . . Retrieved Matter . | . . . Retrieved Components 9 | . 9 . Parts Scanalyzed . | . . . Part Schematics Acquired . | . . . Parts Damaged . | . . . Bothacking | -11 -10 -10 ------------ Run | Yrd Mat Min Used RIF Installer . | . . . Robots Hacked . | . . . Non-combat . | . . . Combat . | . . . Robot Hacks Applied . | . . . Relay Couplers Released . | . . . Fabnet Peak Effective % . | . . . Robots Rewired . | . . . Allies Hacked . | . . . Hacks Repelled . | . . . Allies | -11 -10 -10 -------- Run | Yrd Mat Min Total Allies . | . . . Largest Group . | . . . Highest-Rated Group . | . . . Highest-Rated Ally . | . . . Total Orders . | . . . Ally Attacks . | . . . Total Damage . | . . . Kills . | . . . Allies Corrupted . | . . . Allies Melted . | . . . Intel | -11 -10 -10 ------- Run | Yrd Mat Min Robot Analysis Total 2 | . 2 . Derelict Logs Recovered . | . . . Drone Launches . | . . . Drone Recoveries . | . . . Exploration | -11 -10 -10 ------------- Run | Yrd Mat Min Turns Passed 2586 | 80 2134 372 Spaces Moved 897 | 45 759 93 Core 4 | 4 . . Treads 777 | . 684 93 Legs . | . . . Wheels 116 | 41 75 . Hover . | . . . Flight . | . . . Fastest Speed 50 | 50 100 320 Average Speed 228 | 95 224 320 Slowest Speed 320 | 100 320 320 Overloaded Moves . | . . . Propulsion Burnouts . | . . . Robots Hopped . | . . . Cave-ins Triggered . | . . . Exploration Rate (%) 39 | 3 98 18 Regions Visited 2 Branch Regions 1 Pre-discovered Areas 2 | . 2 . Known Exits Taken . | . . . Unknown Exits Taken 2 | 1 1 . Scrap Searched . | . . . Spaces Dug 61 | . 4 57 Terrain Destroyed 80 | . 23 57 Melee . | . . . Projectile 10 | . 10 . AOE 70 | . 13 57 Terrain Rammed . | . . . Walls Destroyed . | . . . Machines Disabled . | . . . Actions | -11 -10 -10 --------- Run | Yrd Mat Min Total 1226 | 67 1028 131 Wait 124 | . 118 6 Move 895 | 44 758 93 Hop . | . . . Pick Up 49 | 8 37 4 Fast Attach 5 | 4 1 . Attach 9 | 3 5 1 Detach . | . . . Swap 22 | . 18 4 Drop 19 | . 17 2 Fire 103 | 8 74 21 Melee . | . . . Ram . | . . . Kick . | . . . Crush . | . . . Escape Stasis . | . . . Rewire . | . . . Trap . | . . . Miscellaneous . | . . . Route ------- -11/Scrapyard -10/Materials (discovered 4 exits: [*Mat x3] / [*Min]) -10/Mines History --------- Turn | Location | Event 16 | -11/Scrapyard | Discovered new exit (range 16) 81 | -11/Scrapyard | Entered Materials 238 | -10/Materials | Discovered new exit (range 3) 269 | -10/Materials | Discovered new exit (range 16) 305 | -10/Materials | Discovered new exit (range 14) 308 | -10/Materials | Build established: Mutant 826 | -10/Materials | Repaired Particle Cannon 853 | -10/Materials | Repaired Lgt. Treads 909 | -10/Materials | Discovered new exit (range 14) 2215 | -10/Materials | Entered Mines 2327 | -10/Mines | Core integrity fell below 50% 2531 | -10/Mines | Assembled infested the area 2584 | -10/Mines | Core integrity fell below 20% 2587 | -10/Mines | Destroyed by D-53 Grenadier with Mini Grenade Launcher Last Messages --------------- 02447_ Acquired Lgt. Treads. 02454_ Dropped Com. Wheel. 02454_ R-06 Scavenger collects Lgt. Ion Engine. 02455_ Acquired Lgt. Armor Plating. 02457_ R-06 Scavenger collects Particle Gun. 02461_ R-06 Scavenger collects Aluminum Leg. 02462_ Dropped Transport Network Coupler. 02465_ R-06 Scavenger collects Tractor Beam. 02476_ Acquired Hvy. Assault Rifle. 02531_ ALERT: Infestation in the mines, dispatching Demolisher response squad. 02555_ U-05 Engineer destroyed. 02557_ Destroyed Asb. F-torch. 02557_ Destroyed Asb. Hover Unit. 02557_ as-57537 destroyed. 02559_ as-43801 destroyed. 02563_ D-53 Grenadier destroyed. 02575_ as-07372 destroyed. 02585_ Lgt. Treads destroyed. 02585_ Particle Cannon destroyed. Map ----- +----------------------------------------------------+ | ?????????????????????????????????????????????????? | | ?????????????????????????????????????????????????? | | ??????????????????????????????????? ?????????? | | ?????????????????????????????????? #????????? | | ?????????????????????????????????? #????????? | | ?????????????????????????????????? ##???????? | | ??????????????????????????????????# ##??????? | | ??????????????????????????????????# #?????? | | ??????????????????????????????????# * ??????? | | ?????????????????????????????????? [ ???????? | | ??????????????????????????????????# [ * #???????? | | ?????????????????????????????????#### ##??????? | | ?????????????????????????????????? # ##?????? | | ??????????????????????????????????# # # #?????? | | ?????????????????????????????????## # #?????? | | ?????????????????????????????????# #??????? | | ?????????????????????????????????# #???????? | | ?????????????????????????????????# #????????? | | ????????????????????????????####### #????????? | | ????????????????????????????# =[ #????????? | | ???????????????####???####### aa #????????? | | ??????????###### ##?## #### #????????? | | ??????????# ### #??#### #????????? | | ?????????## #?????? #????????? | | ?????###?# a ##????? #????????? | | ????##![## [ d @ #????? #????????? | | ????#"][=# %*% # ##????? #????????? | | ????# +! ## ???????? #????????? | | ????# +% ### * ##??????? ????????? | | ????#"!! # ### r #######????????? #????????? | | ????##!!## ## #??????????????? #????????? | | ?????#### ### ##??????????????? #????????? | | ????????# #?# ????????????????? ?????????? | | ????????## ##?## ???????????????????????????? | | ?????????####???# #??????????????????????????? | | ???????????????? % #?????????????????????????? | | ??????????????? #?????????????????????????? | | ?????????????? #?????????????????????????? | | ????????????? ! #?????????????????????????? | | ???????????? *%] " #?????????????????????????? | | ??????????? " ?????????????????????????? | | ??????????#### ?????????????????????????? | | ?????????????### ????????????????????????? | | ???????????????## ??? ????????????????????????? | | ????????????????# ???? ???????????????????????? | | ????????????????# ???? ???????????????????????? | | ???????????????? ?????? #???????????????????????? | | ?????????????????#??????#????????????????????????? | | ?????????????????????????????????????????????????? | | ?????????????????????????????????????????????????? | +----------------------------------------------------+ Best States ------------- Heat Dissipation 47 Energy Generation 10 Energy Capacity 250 Matter Stores 300 Matter Capacity 300 Sight Range 16 Terrain Scan Density 10 Evasion (%) 40 Recoil Reduction 2 Item Schematics ----------------- None Robot Schematics ------------------ None Fabricated ------------ Nothing Alien Tech Used ----------------- None Achievements -------------- None Challenges ------------ None Game ------ Seed MeleeDrainedFemtoactuators Manual? 0 Play Time 00:19:55 Cumulative 170.0 hours Start 2024.06.28 @ 11:10:38 End 2024.06.28 @ 11:38:11 Sessions 1 Manual Loads 0 Difficulty Rogue Special Mode None Game No. 145 Rogue 140 Adventurer 5 Explorer 0 Win Type - Total 3 Types 2/0/1/0/0/0/0/0/0 Lore% 64 Gallery% 76 Achievement% 55 Wizard Run 0 Options --------- Layout 2 ASCII 0 Keyboard 0 Movement Mouse Keybinds 0 Fullscreen 2 Font 24/Smallcaps Map View 50x44 Zoom Use 0% Tactical HUD 1 Map Filters NONE Filters NONE Steam 1 RUN: 79465d3e-19b3-4a03-970d-3accba49f71f